[Event "Bruges Masters 2018"]
[Site "Brugge"]
[Date "2018.08.16"]
[Round "5"]
[White "Dgebuadze, Alexandre"]
[Black "Zeng, Chongsheng"]
[Result "0-1"]
[ECO "D02"]
[WhiteElo "2511"]
[BlackElo "2539"]
[Annotator "ChessBase"]
[PlyCount "110"]
[EventDate "2018.08.12"]
[EventType "swiss"]
[EventCountry "BEL"]
[SourceTitle "playchess.com"]
[Source "ChessBase"]
[SourceQuality "1"]
[TimeControl "5400+30"]

1. Nf3 {[%emt 0:00:00]} Nf6 {[%emt 0:07:04]} 2. d4 {[%emt 0:00:00]} g6 {[%emt 0:00:06]} 3. g3 {[%emt 0:00:26]} Bg7 {[%emt 0:00:10]} 4. Bg2 {[%emt 0:00:05]} O-O {[%emt 0:00:06]} 5. O-O {[%emt 0:00:04]} d5 {[%emt 0:00:06]} 6. c3 {[%emt 0:01:44]} b6 {[%emt 0:04:59]} 7. Ne5 {[%emt 0:04:24]} Bb7 {[%emt 0:00:32]} 8. Nd2 {[%emt 0:03:27]} c5 {[%emt 0:02:04]} 9. a4 {[%emt 0:06:24]} Nc6 {[%emt 0:02:53]} 10. Ndf3 {[%emt 0:05:07]} Na5 {[%emt 0:07:18]} 11. b4 {[%emt 0:14:47]} cxb4 {[%emt 0:01:56]} 12. cxb4 {[%emt 0:00:04]} Nc4 {[%emt 0:00:05]} 13. Qb3 {[%emt 0:01:32]} Rc8 {[%emt 0:00:56]} 14. Bh3 {[%emt 0:07:46]} e6 {[%emt 0:01:18]} 15. Bg5 {[%emt 0:01:02]} h6 {[%emt 0:06:25]} 16. Bxf6 {[%emt 0:00:44]} Bxf6 {[%emt 0:00:02]} 17. Nd3 {[%emt 0:08:51]} Qd6 {[%emt 0:03:41]} 18. Rfc1 {[%emt 0:04:58]} Rc7 {[%emt 0:00:56]} 19. Ra2 {[%emt 0:03:41]} Rfc8 {[%emt 0:00:18]} 20. Rac2 {[%emt 0:01:05]} Bc6 {[%emt 0:02:51]} 21. Nde5 {[%emt 0:07:57]} Be8 {[%emt 0:12:26]} 22. Nd3 {[%emt 0:05:53]} Bg7 {[%emt 0:12:43]} 23. e3 {[%emt 0:01:55]} g5 {[%emt 0:00:14]} 24. Bf1 {[%emt 0:03:12]} f6 {[%emt 0:01:01]} 25. Rc3 {[%emt 0:06:14]} Bf8 {[%emt 0:04:38]} 26. Be2 {[%emt 0:02:05]} Bg6 {[%emt 0:05:53]} 27. b5 {[%emt 0:03:45]} h5 {[%emt 0:00:24]} 28. h4 {[%emt 0:02:04]} g4 {[%emt 0:03:09]} 29. Nfe1 {[%emt 0:00:21]} e5 {[%emt 0:00:05]} 30. Qa2 {[%emt 0:03:12]} Bh6 {[%emt 0:06:44]} 31. dxe5 {[%emt 0:00:34]} fxe5 {[%emt 0:00:05]} 32. Nb2 {[%emt 0:00:50]} Nxe3 {[%emt 0:01:41]} 33. Rxc7 {[%emt 0:00:24]} Rxc7 {[%emt 0:00:07]} 34. Rxc7 {[%emt 0:00:07]} Qxc7 {[%emt 0:00:04]} 35. fxe3 {[%emt 0:00:29]} Bxe3+ {[%emt 0:00:08]} 36. Kh2 {[%emt 0:00:27]} Qc5 {[%emt 0:05:02]} 37. Nd1 {[%emt 0:00:22]} Bg1+ {[%emt 0:03:18]} 38. Kh1 {[%emt 0:00:17]} Be4+ {[%emt 0:00:14]} 39. Ng2 {[%emt 0:00:06]} Be3 {[%emt 0:04:16]} 40. a5 {[%emt 0:01:20]} Bd4 {[%emt 0:01:04]} 41. axb6 {[%emt 0:00:08]} Qb4 {[%emt 0:00:16]} 42. Kh2 {[%emt 0:01:08]} Bxb6 {[%emt 0:00:07]} 43. Nde3 {[%emt 0:01:23]} Qd4 {[%emt 0:01:35]} 44. Qa6 {[%emt 0:00:32]} Qc3 {[%emt 0:00:45]} 45. Nc4 {[%emt 0:00:43]} dxc4 {[%emt 0:01:05]} 46. Qc8+ {[%emt 0:00:04]} Kg7 {[%emt 0:00:06]} 47. Qd7+ {[%emt 0:01:07]} Kh6 {[%emt 0:00:21]} 48. Qd6+ {[%emt 0:00:25]} Bg6 {[%emt 0:00:31]} 49. Qf8+ {[%emt 0:00:31]} Kh7 {[%emt 0:00:02]} 50. Qe7+ {[%emt 0:00:07]} Kg8 {[%emt 0:00:19]} 51. Qf6 {[%emt 0:00:35]} Bf7 {[%emt 0:00:36]} 52. Nf4 {[%emt 0:00:35]} Qe3 {[%emt 0:01:08]} 53. Qg5+ {[%emt 0:00:13]} Kf8 {[%emt 0:00:11]} 54. Qh6+ {[%emt 0:00:19]} Ke7 {[%emt 0:00:10]} 55. Qg5+ {[%emt 0:00:14]} Ke8 {[%emt 0:00:12]} 0-1

[Event "Bruges Masters 2018"]
[Site "Brugge"]
[Date "2018.08.16"]
[Round "5"]
[White "Van Foreest, Lucas"]
[Black "Frayna, Janelle Mae"]
[Result "1-0"]
[ECO "B07"]
[WhiteElo "2488"]
[BlackElo "2278"]
[Annotator "ChessBase"]
[PlyCount "71"]
[EventDate "2018.08.12"]
[EventType "swiss"]
[EventCountry "BEL"]
[SourceTitle "playchess.com"]
[Source "ChessBase"]
[SourceQuality "1"]
[TimeControl "5400+30"]

1. e4 {[%emt 0:07:59]} g6 {[%emt 0:01:25]} 2. d4 {[%emt 0:00:05]} Bg7 {[%emt 0:00:03]} 3. Nc3 {[%emt 0:00:04]} c6 {[%emt 0:00:13]} 4. h3 {[%emt 0:01:21]} d6 {[%emt 0:01:19]} 5. Be3 {[%emt 0:01:13]} Nf6 {[%emt 0:01:04]} 6. Qd2 {[%emt 0:02:39]} b5 {[%emt 0:04:06]} 7. Bd3 {[%emt 0:01:01]} Nbd7 {[%emt 0:01:04]} 8. Nf3 {[%emt 0:08:00]} e5 {[%emt 0:01:30]} 9. a4 {[%emt 0:01:49]} b4 {[%emt 0:04:23]} 10. Ne2 {[%emt 0:00:27]} a5 {[%emt 0:00:59]} 11. Ng3 {[%emt 0:01:58]} O-O {[%emt 0:01:40]} 12. O-O {[%emt 0:02:10]} Qc7 {[%emt 0:15:39]} 13. c3 {[%emt 0:01:49]} bxc3 {[%emt 0:11:18]} 14. bxc3 {[%emt 0:00:08]} Ba6 {[%emt 0:02:48]} 15. Bxa6 {[%emt 0:00:57]} Rxa6 {[%emt 0:00:01]} 16. dxe5 {[%emt 0:02:32]} Nxe5 {[%emt 0:00:53]} 17. Nxe5 {[%emt 0:00:08]} dxe5 {[%emt 0:00:01]} 18. Rfd1 {[%emt 0:00:37]} c5 {[%emt 0:02:24]} 19. Rab1 {[%emt 0:00:29]} Qc6 {[%emt 0:04:25]} 20. Qc2 {[%emt 0:00:16]} h5 {[%emt 0:02:58]} 21. f3 {[%emt 0:01:35]} c4 {[%emt 0:01:29]} 22. Rb5 {[%emt 0:00:36]} Qe6 {[%emt 0:03:03]} 23. Nf1 {[%emt 0:01:26]} Rc8 {[%emt 0:00:42]} 24. Rd2 {[%emt 0:12:59]} Bf8 {[%emt 0:01:29]} 25. Qd1 {[%emt 0:00:11]} Kg7 {[%emt 0:07:35]} 26. Rd8 {[%emt 0:07:34]} Rcc6 {[%emt 0:02:50]} 27. Rbb8 {[%emt 0:08:26]} Rd6 {[%emt 0:06:30]} 28. Bh6+ {[%emt 0:01:41]} Kxh6 {[%emt 0:00:10]} 29. Qc1+ {[%emt 0:00:04]} Kg7 {[%emt 0:02:02]} 30. Rxf8 {[%emt 0:00:51]} Qd7 {[%emt 0:06:08]} 31. Rh8 {[%emt 0:01:48]} Nh7 {[%emt 0:00:10]} 32. Rbg8+ {[%emt 0:00:41]} Kf6 {[%emt 0:00:00]} 33. Rxh7 {[%emt 0:00:27]} Rd1 {[%emt 0:00:03]} 34. Qh6 {[%emt 0:04:04]} Qa7+ {[%emt 0:12:03]} 35. Kh2 {[%emt 0:00:06]} Rxf1 {[%emt 0:00:09]} 36. Qg7+ {[%emt 0:00:06]} 1-0

[Event "Bruges Masters 2018"]
[Site "Brugge"]
[Date "2018.08.16"]
[Round "5"]
[White "Koziak, Vitali"]
[Black "Guennigmann, Manuel"]
[Result "1-0"]
[ECO "A46"]
[WhiteElo "2476"]
[BlackElo "2216"]
[Annotator "ChessBase"]
[PlyCount "77"]
[EventDate "2018.08.12"]
[EventType "swiss"]
[EventCountry "BEL"]
[SourceTitle "playchess.com"]
[Source "ChessBase"]
[SourceQuality "1"]
[TimeControl "5400+30"]

1. Nf3 {[%emt 0:00:00]} Nf6 {[%emt 0:00:00]} 2. d4 {[%emt 0:00:00]} d6 {[%emt 0:00:00]} 3. Nc3 {[%emt 0:00:19]} Bf5 {[%emt 0:01:09]} 4. Nh4 {[%emt 0:00:14]} Bd7 {[%emt 0:04:25]} 5. e4 {[%emt 0:00:09]} e5 {[%emt 0:10:22]} 6. Nf3 {[%emt 0:00:49]} exd4 {[%emt 0:02:16]} 7. Nxd4 {[%emt 0:00:06]} Nc6 {[%emt 0:01:41]} 8. f3 {[%emt 0:05:13]} Be7 {[%emt 0:08:19]} 9. Be3 {[%emt 0:01:02]} O-O {[%emt 0:00:45]} 10. Qd2 {[%emt 0:00:13]} Nxd4 {[%emt 0:07:15]} 11. Bxd4 {[%emt 0:01:24]} c5 {[%emt 0:02:08]} 12. Be3 {[%emt 0:14:37]} Qa5 {[%emt 0:03:17]} 13. Be2 {[%emt 0:11:37]} Bc6 {[%emt 0:13:28]} 14. O-O {[%emt 0:01:56]} Kh8 {[%emt 0:01:12]} 15. Rfd1 {[%emt 0:06:04]} Rad8 {[%emt 0:02:52]} 16. Bc4 {[%emt 0:01:31]} Qc7 {[%emt 0:07:00]} 17. Qf2 {[%emt 0:06:47]} Nd7 {[%emt 0:05:09]} 18. Nd5 {[%emt 0:02:27]} Bxd5 {[%emt 0:00:11]} 19. Bxd5 {[%emt 0:00:05]} Bf6 {[%emt 0:02:50]} 20. c3 {[%emt 0:01:32]} Ne5 {[%emt 0:03:06]} 21. Rd2 {[%emt 0:03:15]} Kg8 {[%emt 0:01:57]} 22. h3 {[%emt 0:05:10]} Rfe8 {[%emt 0:03:49]} 23. Rad1 {[%emt 0:00:23]} b6 {[%emt 0:02:15]} 24. g4 {[%emt 0:03:53]} h6 {[%emt 0:01:17]} 25. f4 {[%emt 0:00:22]} Ng6 {[%emt 0:03:22]} 26. g5 {[%emt 0:00:13]} hxg5 {[%emt 0:00:43]} 27. fxg5 {[%emt 0:00:05]} Be5 {[%emt 0:00:16]} 28. Qf5 {[%emt 0:10:51]} Nh8 {[%emt 0:00:16]} 29. g6 {[%emt 0:00:27]} Bf6 {[%emt 0:02:45]} 30. Qh5 {[%emt 0:00:50]} Re5 {[%emt 0:02:28]} 31. Qh7+ {[%emt 0:03:30]} Kf8 {[%emt 0:00:04]} 32. Qxh8+ {[%emt 0:00:20]} Ke7 {[%emt 0:00:04]} 33. Qh7 {[%emt 0:00:24]} Qc8 {[%emt 0:00:32]} 34. Rf1 {[%emt 0:03:34]} Rh8 {[%emt 0:03:17]} 35. Rxf6 {[%emt 0:00:17]} Rxh7 {[%emt 0:01:19]} 36. Rxf7+ {[%emt 0:00:19]} Kd8 {[%emt 0:01:18]} 37. gxh7 {[%emt 0:07:46]} Qxh3 {[%emt 0:00:13]} 38. Rf8+ {[%emt 0:00:44]} Re8 {[%emt 0:01:35]} 39. h8=Q {[%emt 0:01:10]} 1-0

[Event "Bruges Masters 2018"]
[Site "Brugge"]
[Date "2018.08.16"]
[Round "5"]
[White "Rajesh, V A V"]
[Black "Geirnaert, Steven"]
[Result "1-0"]
[ECO "E41"]
[WhiteElo "2325"]
[BlackElo "2427"]
[Annotator "ChessBase"]
[PlyCount "83"]
[EventDate "2018.08.12"]
[EventType "swiss"]
[EventCountry "BEL"]
[SourceTitle "playchess.com"]
[Source "ChessBase"]
[SourceQuality "1"]
[TimeControl "5400+30"]

1. d4 {[%emt 0:00:00]} Nf6 {[%emt 0:04:07]} 2. c4 {[%emt 0:00:00]} e6 {[%emt 0:00:07]} 3. Nc3 {[%emt 0:00:00]} Bb4 {[%emt 0:00:06]} 4. e3 {[%emt 0:00:10]} O-O {[%emt 0:00:07]} 5. Bd3 {[%emt 0:00:07]} d5 {[%emt 0:00:24]} 6. Nge2 {[%emt 0:00:28]} c5 {[%emt 0:00:12]} 7. cxd5 {[%emt 0:01:50]} exd5 {[%emt 0:01:19]} 8. O-O {[%emt 0:00:45]} cxd4 {[%emt 0:07:03]} 9. exd4 {[%emt 0:00:06]} Nc6 {[%emt 0:01:11]} 10. Bg5 {[%emt 0:00:55]} Be7 {[%emt 0:01:58]} 11. Rc1 {[%emt 0:05:56]} Re8 {[%emt 0:07:56]} 12. Re1 {[%emt 0:03:07]} Be6 {[%emt 0:15:02]} 13. Nf4 {[%emt 0:04:33]} Nxd4 {[%emt 0:02:00]} 14. Bxh7+ {[%emt 0:01:00]} Nxh7 {[%emt 0:01:13]} 15. Bxe7 {[%emt 0:00:19]} Qxe7 {[%emt 0:06:30]} 16. Qxd4 {[%emt 0:02:56]} Qf6 {[%emt 0:00:37]} 17. Nb5 {[%emt 0:02:41]} Rac8 {[%emt 0:07:03]} 18. Qxf6 {[%emt 0:06:31]} Nxf6 {[%emt 0:00:10]} 19. Nc7 {[%emt 0:01:48]} Red8 {[%emt 0:00:17]} 20. Ncxe6 {[%emt 0:00:52]} fxe6 {[%emt 0:00:22]} 21. Nxe6 {[%emt 0:00:06]} Re8 {[%emt 0:00:31]} 22. Rxc8 {[%emt 0:00:32]} Rxc8 {[%emt 0:00:05]} 23. Nd4 {[%emt 0:00:06]} Rc4 {[%emt 0:00:45]} 24. Rd1 {[%emt 0:00:07]} Ng4 {[%emt 0:00:53]} 25. h3 {[%emt 0:00:19]} Nf6 {[%emt 0:03:35]} 26. f3 {[%emt 0:01:16]} b5 {[%emt 0:00:37]} 27. b3 {[%emt 0:00:25]} Rc5 {[%emt 0:00:09]} 28. Rd2 {[%emt 0:01:48]} Rc1+ {[%emt 0:05:05]} 29. Kf2 {[%emt 0:00:06]} a6 {[%emt 0:00:14]} 30. Ne2 {[%emt 0:02:19]} Rc7 {[%emt 0:03:16]} 31. Ke3 {[%emt 0:00:37]} Kf7 {[%emt 0:00:06]} 32. Nf4 {[%emt 0:00:33]} Re7+ {[%emt 0:04:06]} 33. Kd4 {[%emt 0:00:07]} g5 {[%emt 0:00:32]} 34. Nd3 {[%emt 0:00:09]} Ke8 {[%emt 0:00:17]} 35. Nb4 {[%emt 0:01:04]} a5 {[%emt 0:02:09]} 36. Nc6 {[%emt 0:04:52]} Rc7 {[%emt 0:00:02]} 37. Rc2 {[%emt 0:00:15]} a4 {[%emt 0:00:57]} 38. Nb4 {[%emt 0:09:58]} axb3 {[%emt 0:00:15]} 39. axb3 {[%emt 0:00:04]} Rd7 {[%emt 0:04:16]} 40. Kc5 {[%emt 0:00:29]} Rc7+ {[%emt 0:08:26]} 41. Kd6 {[%emt 0:00:24]} Re7 {[%emt 0:01:10]} 42. Nxd5 {[%emt 0:01:14]} 1-0

[Event "Bruges Masters 2018"]
[Site "Brugge"]
[Date "2018.08.16"]
[Round "5"]
[White "Dauw, Sterre"]
[Black "Lai, Hing Ting"]
[Result "0-1"]
[ECO "B06"]
[WhiteElo "2192"]
[BlackElo "2459"]
[Annotator "ChessBase"]
[PlyCount "100"]
[EventDate "2018.08.12"]
[EventType "swiss"]
[EventCountry "BEL"]
[SourceTitle "playchess.com"]
[Source "ChessBase"]
[SourceQuality "1"]
[TimeControl "5400+30"]

1. e4 {[%emt 0:10:42]} g6 {[%emt 0:03:42]} 2. d4 {[%emt 0:00:05]} Bg7 {[%emt 0:00:04]} 3. Nc3 {[%emt 0:00:04]} d6 {[%emt 0:00:06]} 4. Be3 {[%emt 0:00:05]} a6 {[%emt 0:00:05]} 5. Be2 {[%emt 0:00:04]} b5 {[%emt 0:00:09]} 6. Bf3 {[%emt 0:00:06]} Nd7 {[%emt 0:01:35]} 7. h4 {[%emt 0:00:11]} e5 {[%emt 0:02:22]} 8. h5 {[%emt 0:00:32]} Bb7 {[%emt 0:01:44]} 9. h6 {[%emt 0:06:11]} Bf6 {[%emt 0:01:03]} 10. Bg4 {[%emt 0:01:30]} b4 {[%emt 0:02:59]} 11. Nd5 {[%emt 0:01:54]} Bxd5 {[%emt 0:00:10]} 12. Bxd7+ {[%emt 0:00:19]} Qxd7 {[%emt 0:00:22]} 13. exd5 {[%emt 0:00:07]} Qb5 {[%emt 0:09:56]} 14. dxe5 {[%emt 0:07:40]} Bxe5 {[%emt 0:00:35]} 15. Nf3 {[%emt 0:00:06]} Ne7 {[%emt 0:05:16]} 16. Nxe5 {[%emt 0:01:53]} dxe5 {[%emt 0:00:04]} 17. Qf3 {[%emt 0:00:49]} Nxd5 {[%emt 0:01:37]} 18. O-O-O {[%emt 0:02:12]} c6 {[%emt 0:00:54]} 19. Bg5 {[%emt 0:01:38]} f5 {[%emt 0:05:10]} 20. Qg3 {[%emt 0:02:02]} Qb8 {[%emt 0:02:00]} 21. Rhe1 {[%emt 0:06:18]} e4 {[%emt 0:01:22]} 22. Qxb8+ {[%emt 0:04:31]} Rxb8 {[%emt 0:00:01]} 23. f3 {[%emt 0:00:08]} O-O {[%emt 0:00:06]} 24. fxe4 {[%emt 0:00:03]} fxe4 {[%emt 0:00:06]} 25. Rxe4 {[%emt 0:00:05]} Rbe8 {[%emt 0:02:54]} 26. Rxe8 {[%emt 0:11:44]} Rxe8 {[%emt 0:00:01]} 27. a3 {[%emt 0:00:09]} bxa3 {[%emt 0:04:00]} 28. bxa3 {[%emt 0:03:56]} Re4 {[%emt 0:00:04]} 29. Bd2 {[%emt 0:01:29]} Kf7 {[%emt 0:07:53]} 30. Rf1+ {[%emt 0:02:53]} Ke7 {[%emt 0:00:11]} 31. Rf2 {[%emt 0:00:26]} c5 {[%emt 0:04:55]} 32. Bg5+ {[%emt 0:02:43]} Ke8 {[%emt 0:03:15]} 33. Kb2 {[%emt 0:04:54]} c4 {[%emt 0:05:12]} 34. Bf6 {[%emt 0:04:12]} Ne3 {[%emt 0:02:12]} 35. Rd2 {[%emt 0:02:46]} Nf5 {[%emt 0:05:15]} 36. Rd8+ {[%emt 0:00:35]} Kf7 {[%emt 0:00:02]} 37. Bc3 {[%emt 0:00:37]} g5 {[%emt 0:02:12]} 38. Ra8 {[%emt 0:06:00]} Re6 {[%emt 0:03:20]} 39. Bd2 {[%emt 0:00:29]} Rxh6 {[%emt 0:11:38]} 40. Ra7+ {[%emt 0:01:36]} Ke8 {[%emt 0:00:22]} 41. Bxg5 {[%emt 0:02:16]} Rg6 {[%emt 0:00:09]} 42. g4 {[%emt 0:01:50]} Nd4 {[%emt 0:00:17]} 43. Be3 {[%emt 0:00:27]} c3+ {[%emt 0:00:32]} 44. Kb1 {[%emt 0:00:54]} Rb6+ {[%emt 0:01:25]} 45. Kc1 {[%emt 0:00:43]} Re6 {[%emt 0:00:01]} 46. Bf2 {[%emt 0:03:34]} Re2 {[%emt 0:03:55]} 47. Ra8+ {[%emt 0:01:17]} Kd7 {[%emt 0:00:34]} 48. Ra7+ {[%emt 0:02:48]} Kc8 {[%emt 0:01:33]} 49. Ra8+ {[%emt 0:01:22]} Kb7 {[%emt 0:00:14]} 50. Rd8 {[%emt 0:00:17]} Rxc2+ {[%emt 0:00:23]} 0-1

[Event "Bruges Masters 2018"]
[Site "Brugge"]
[Date "2018.08.16"]
[Round "5"]
[White "Hill, Alistair"]
[Black "Ravi, Teja S."]
[Result "1/2-1/2"]
[ECO "A07"]
[WhiteElo "2176"]
[BlackElo "2374"]
[Annotator "ChessBase"]
[PlyCount "83"]
[EventDate "2018.08.12"]
[EventType "swiss"]
[EventCountry "BEL"]
[SourceTitle "playchess.com"]
[Source "ChessBase"]
[SourceQuality "1"]
[TimeControl "5400+30"]

1. Nf3 {[%emt 0:03:39]} d5 {[%emt 0:02:24]} 2. g3 {[%emt 0:00:06]} c6 {[%emt 0:00:27]} 3. Bg2 {[%emt 0:00:05]} Bg4 {[%emt 0:00:07]} 4. O-O {[%emt 0:00:22]} Nd7 {[%emt 0:00:08]} 5. h3 {[%emt 0:00:25]} Bh5 {[%emt 0:03:38]} 6. c4 {[%emt 0:00:08]} e6 {[%emt 0:00:10]} 7. d3 {[%emt 0:01:00]} Ngf6 {[%emt 0:00:26]} 8. cxd5 {[%emt 0:00:09]} exd5 {[%emt 0:02:38]} 9. Qb3 {[%emt 0:01:12]} Qb6 {[%emt 0:02:26]} 10. Qxb6 {[%emt 0:06:00]} axb6 {[%emt 0:01:25]} 11. g4 {[%emt 0:00:12]} Bg6 {[%emt 0:00:05]} 12. Bf4 {[%emt 0:00:05]} Bc5 {[%emt 0:05:28]} 13. Nbd2 {[%emt 0:00:08]} O-O {[%emt 0:05:24]} 14. Nb3 {[%emt 0:06:08]} Be7 {[%emt 0:05:13]} 15. Nbd4 {[%emt 0:00:05]} Ra4 {[%emt 0:01:52]} 16. b3 {[%emt 0:09:38]} Ra3 {[%emt 0:01:13]} 17. Nc2 {[%emt 0:00:04]} Raa8 {[%emt 0:01:37]} 18. a4 {[%emt 0:00:29]} Nc5 {[%emt 0:14:21]} 19. Ncd4 {[%emt 0:06:43]} Nfd7 {[%emt 0:02:48]} 20. Rad1 {[%emt 0:15:52]} Rfe8 {[%emt 0:04:09]} 21. Rfe1 {[%emt 0:01:48]} Na6 {[%emt 0:07:03]} 22. e3 {[%emt 0:04:26]} Bb4 {[%emt 0:03:48]} 23. Re2 {[%emt 0:00:49]} Ndc5 {[%emt 0:02:56]} 24. Ne5 {[%emt 0:02:22]} Bc3 {[%emt 0:02:59]} 25. Rc2 {[%emt 0:06:26]} Bxd4 {[%emt 0:04:02]} 26. exd4 {[%emt 0:00:03]} Nb4 {[%emt 0:02:25]} 27. Rcd2 {[%emt 0:00:52]} Nxb3 {[%emt 0:03:30]} 28. Rb2 {[%emt 0:00:17]} Nxd4 {[%emt 0:00:49]} 29. Nxg6 {[%emt 0:00:28]} hxg6 {[%emt 0:01:27]} 30. Rxb4 {[%emt 0:02:49]} Ne2+ {[%emt 0:00:10]} 31. Kf1 {[%emt 0:00:06]} c5 {[%emt 0:00:23]} 32. Bf3 {[%emt 0:13:01]} Nc3 {[%emt 0:01:06]} 33. Rxb6 {[%emt 0:00:54]} Rxa4 {[%emt 0:00:23]} 34. Rc1 {[%emt 0:07:37]} Rxf4 {[%emt 0:00:28]} 35. Rxc3 {[%emt 0:00:02]} d4 {[%emt 0:01:07]} 36. Rxc5 {[%emt 0:00:49]} Rxf3 {[%emt 0:00:06]} 37. Kg2 {[%emt 0:00:55]} Rxd3 {[%emt 0:02:08]} 38. Rxb7 {[%emt 0:00:05]} Ra3 {[%emt 0:05:48]} 39. Rcc7 {[%emt 0:00:30]} Rf8 {[%emt 0:00:07]} 40. Rd7 {[%emt 0:00:25]} d3 {[%emt 0:00:09]} 41. Rb4 {[%emt 0:00:33]} Rc8 {[%emt 0:00:44]} 42. Rbb7 {[%emt 0:00:38]} 1/2-1/2

[Event "Bruges Masters 2018"]
[Site "Brugge"]
[Date "2018.08.16"]
[Round "6"]
[White "Zeng, Chongsheng"]
[Black "Hu Yik Kwan"]
[Result "1-0"]
[ECO "A22"]
[WhiteElo "2539"]
[BlackElo "1504"]
[Annotator "RC"]
[PlyCount "87"]
[EventDate "2018.08.12"]
[EventType "swiss"]
[EventCountry "BEL"]
[SourceTitle "playchess.com"]
[Source "ChessBase"]
[SourceQuality "1"]
[TimeControl "5400+30"]

1. c4 {[%emt 0:00:00]} Nf6 {[%emt 0:01:14]} 2. Nc3 {[%emt 0:01:39]} e5 {[%emt 0:08:13]} 3. g3 {[%emt 0:00:43]} Bb4 {[%emt 0:07:53]} 4. Nf3 {[%emt 0:00:59]} d6 {[%emt 0:06:53]} 5. Qa4+ {[%emt 0:00:22]} Nc6 {[%emt 0:00:53]} 6. Nd5 {[%emt 0:00:05]} Bc5 {[%emt 0:02:17]} 7. b4 {[%emt 0:00:44]} Bb6 {[%emt 0:03:10]} 8. Nxb6 {[%emt 0:00:16]} cxb6 {[%emt 0:00:10]} 9. d3 {[%emt 0:01:04]} O-O {[%emt 0:01:42]} 10. Bg2 {[%emt 0:00:05]} Bd7 {[%emt 0:05:19]} 11. b5 {[%emt 0:00:55]} Ne7 {[%emt 0:02:43]} 12. Qb4 {[%emt 0:00:33]} Ne8 {[%emt 0:02:58]} 13. a4 {[%emt 0:00:57]} Qc7 {[%emt 0:11:04]} 14. Nxe5 {[%emt 0:00:32]} Be6 {[%emt 0:04:48]} 15. Nf3 {[%emt 0:00:55]} a5 {[%emt 0:14:28]} 16. Qb2 {[%emt 0:00:29]} d5 {[%emt 0:03:33]} 17. Bf4 {[%emt 0:00:10]} Qc8 {[%emt 0:08:15]} 18. cxd5 {[%emt 0:00:43]} Nxd5 {[%emt 0:01:23]} 19. Rc1 {[%emt 0:00:03]} Qd8 {[%emt 0:01:32]} 20. Bg5 {[%emt 0:00:17]} f6 {[%emt 0:05:51]} 21. Nd4 {[%emt 0:00:09]} Bf7 {[%emt 0:00:34]} 22. Bd2 {[%emt 0:00:04]} Qd7 {[%emt 0:01:34]} 23. h4 {[%emt 0:00:39]} Nd6 {[%emt 0:04:23]} 24. Bh3 {[%emt 0:00:06]} Qe7 {[%emt 0:00:19]} 25. O-O {[%emt 0:00:05]} Nc7 {[%emt 0:00:49]} 26. e4 {[%emt 0:00:24]} Ne6 {[%emt 0:00:31]} 27. Nxe6 {[%emt 0:00:58]} Bxe6 {[%emt 0:00:08]} 28. Bxe6+ {[%emt 0:00:12]} Qxe6 {[%emt 0:00:04]} 29. Qd4 {[%emt 0:00:07]} Nf7 {[%emt 0:01:18]} 30. Be3 {[%emt 0:00:20]} Rfd8 {[%emt 0:00:29]} 31. Qxb6 {[%emt 0:00:21]} Qxb6 {[%emt 0:00:31]} 32. Bxb6 {[%emt 0:00:06]} Rxd3 {[%emt 0:00:08]} 33. Rfd1 {[%emt 0:00:07]} Ne5 {[%emt 0:00:51]} 34. Rxd3 {[%emt 0:00:35]} Nxd3 {[%emt 0:00:07]} 35. Rc7 {[%emt 0:00:14]} Nb2 {[%emt 0:00:54]} 36. Bd4 {[%emt 0:00:07]} Nd3 {[%emt 0:00:30]} 37. Rxb7 {[%emt 0:00:09]} Re8 {[%emt 0:00:30]} 38. b6 {[%emt 0:00:14]} Nb4 {[%emt 0:00:30]} 39. Rd7 {[%emt 0:01:04]} Nc6 {[%emt 0:00:29]} 40. b7 {[%emt 0:00:15]} Nxd4 {[%emt 0:00:31]} 41. Rc7 {[%emt 0:01:33]} Nc6 {[%emt 0:00:29]} 42. Rxc6 {[%emt 0:00:06]} Kf7 {[%emt 0:00:31]} 43. Rc8 {[%emt 0:00:07]} Rxe4 {[%emt 0:00:30]} 44. b8=Q {[%emt 0:00:09]} 1-0

[Event "Bruges Masters 2018"]
[Site "Brugge"]
[Date "2018.08.16"]
[Round "6"]
[White "Wan, Yunguo"]
[Black "Rajesh, V A V"]
[Result "1/2-1/2"]
[ECO "C54"]
[WhiteElo "2501"]
[BlackElo "2325"]
[Annotator "ChessBase"]
[PlyCount "107"]
[EventDate "2018.08.12"]
[EventType "swiss"]
[EventCountry "BEL"]
[SourceTitle "playchess.com"]
[Source "ChessBase"]
[SourceQuality "1"]
[TimeControl "5400+30"]

1. e4 {[%emt 0:00:00]} e5 {[%emt 0:00:00]} 2. Nf3 {[%emt 0:00:21]} Nc6 {[%emt 0:00:00]} 3. Bc4 {[%emt 0:00:06]} Bc5 {[%emt 0:00:00]} 4. c3 {[%emt 0:00:28]} Nf6 {[%emt 0:00:18]} 5. d4 {[%emt 0:00:19]} exd4 {[%emt 0:00:20]} 6. e5 {[%emt 0:00:05]} d5 {[%emt 0:00:23]} 7. Bb5 {[%emt 0:00:05]} Ne4 {[%emt 0:00:43]} 8. cxd4 {[%emt 0:00:22]} Bb6 {[%emt 0:00:10]} 9. Nc3 {[%emt 0:00:11]} O-O {[%emt 0:00:55]} 10. Be3 {[%emt 0:00:05]} Bg4 {[%emt 0:04:58]} 11. h3 {[%emt 0:00:28]} Bh5 {[%emt 0:00:13]} 12. Qc2 {[%emt 0:00:08]} Bg6 {[%emt 0:06:03]} 13. Qb3 {[%emt 0:00:49]} Ne7 {[%emt 0:00:42]} 14. O-O {[%emt 0:00:14]} c6 {[%emt 0:00:47]} 15. Bd3 {[%emt 0:00:15]} Nd2 {[%emt 0:19:20]} 16. Nxd2 {[%emt 0:01:02]} Bxd3 {[%emt 0:00:06]} 17. Rfe1 {[%emt 0:00:08]} Nf5 {[%emt 0:05:40]} 18. Na4 {[%emt 0:08:16]} Bb5 {[%emt 0:01:34]} 19. Nxb6 {[%emt 0:01:10]} axb6 {[%emt 0:00:29]} 20. a4 {[%emt 0:02:24]} Ba6 {[%emt 0:00:10]} 21. Qc2 {[%emt 0:10:11]} Nxe3 {[%emt 0:04:47]} 22. Rxe3 {[%emt 0:01:57]} Qh4 {[%emt 0:07:07]} 23. Nf3 {[%emt 0:00:56]} Qe7 {[%emt 0:00:26]} 24. Rb3 {[%emt 0:08:30]} Bb5 {[%emt 0:02:34]} 25. Rba3 {[%emt 0:04:19]} Bc4 {[%emt 0:01:34]} 26. Nd2 {[%emt 0:07:01]} Be2 {[%emt 0:06:05]} 27. Qb3 {[%emt 0:08:53]} Qg5 {[%emt 0:04:15]} 28. Qe3 {[%emt 0:10:56]} Qxe3 {[%emt 0:00:43]} 29. Rxe3 {[%emt 0:00:04]} Bc4 {[%emt 0:04:15]} 30. b3 {[%emt 0:02:18]} Ba6 {[%emt 0:00:05]} 31. b4 {[%emt 0:01:50]} Bc4 {[%emt 0:01:52]} 32. Rc3 {[%emt 0:01:51]} Rfd8 {[%emt 0:05:13]} 33. f4 {[%emt 0:01:24]} Ra6 {[%emt 0:00:50]} 34. Kf2 {[%emt 0:03:23]} Bb5 {[%emt 0:00:53]} 35. Rca3 {[%emt 0:01:09]} Rda8 {[%emt 0:00:09]} 36. a5 {[%emt 0:00:04]} g6 {[%emt 0:00:27]} 37. Nb1 {[%emt 0:03:01]} c5 {[%emt 0:07:44]} 38. bxc5 {[%emt 0:01:43]} bxc5 {[%emt 0:01:09]} 39. Nc3 {[%emt 0:02:35]} Bc4 {[%emt 0:00:32]} 40. dxc5 {[%emt 0:00:36]} Rc6 {[%emt 0:01:44]} 41. Rb1 {[%emt 0:02:31]} Rxc5 {[%emt 0:00:24]} 42. Rxb7 {[%emt 0:00:09]} Rcxa5 {[%emt 0:00:27]} 43. Rxa5 {[%emt 0:00:29]} Rxa5 {[%emt 0:00:03]} 44. Rd7 {[%emt 0:00:12]} Kf8 {[%emt 0:02:02]} 45. Ke3 {[%emt 0:03:08]} Bf1 {[%emt 0:01:16]} 46. Nxd5 {[%emt 0:03:04]} Bxg2 {[%emt 0:00:56]} 47. Nf6 {[%emt 0:00:34]} Ra3+ {[%emt 0:02:23]} 48. Kd4 {[%emt 0:04:56]} Bxh3 {[%emt 0:02:04]} 49. Rd8+ {[%emt 0:00:30]} Kg7 {[%emt 0:00:12]} 50. Rg8+ {[%emt 0:00:18]} Kh6 {[%emt 0:00:08]} 51. Rh8 {[%emt 0:00:16]} g5 {[%emt 0:01:14]} 52. Rxh7+ {[%emt 0:01:35]} Kg6 {[%emt 0:00:05]} 53. fxg5 {[%emt 0:00:41]} Be6 {[%emt 0:00:28]} 54. Ke4 {[%emt 0:09:00]} 1/2-1/2